[Event "Early-Titled-Tuesday-Blitz-September-26-2023"]
[Site "Chess.com"]
[Date "2023.09.26"]
[Round "5"]
[White "andrzej"]
[Black "LeoLV10"]
[Result "0-1"]
[WhiteElo "2462"]
[BlackElo "2638"]
[TimeControl "180+1"]
[EndTime "8:59:43 PDT"]
[Termination "LeoLV10 won by checkmate"]

1. e4 {[%clk 0:03:00.9]} 1... c6 {[%clk 0:02:57.3]} 2. d4 {[%clk 0:03:00.8]}
2... d5 {[%clk 0:02:58.2]} 3. e5 {[%clk 0:03:01.3]} 3... c5 {[%clk 0:02:58.5]}
4. Nf3 {[%clk 0:03:01]} 4... e6 {[%clk 0:02:52.3]} 5. c3 {[%clk 0:02:57.1]} 5...
Nc6 {[%clk 0:02:51.1]} 6. Bd3 {[%clk 0:02:57.1]} 6... Qb6 {[%clk 0:02:48.7]} 7.
a3 {[%clk 0:02:48.8]} 7... Bd7 {[%clk 0:02:48.6]} 8. Bc2 {[%clk 0:02:44.8]} 8...
Nge7 {[%clk 0:02:27.8]} 9. b4 {[%clk 0:02:43]} 9... cxd4 {[%clk 0:02:24.3]} 10.
cxd4 {[%clk 0:02:43.1]} 10... Rc8 {[%clk 0:02:24.8]} 11. O-O {[%clk 0:02:40.8]}
11... a5 {[%clk 0:02:24.7]} 12. Nc3 {[%clk 0:02:29]} 12... axb4 {[%clk
0:02:20.8]} 13. Na4 {[%clk 0:02:28.5]} 13... Qc7 {[%clk 0:02:16.5]} 14. Bd2
{[%clk 0:01:44.4]} 14... Ng6 {[%clk 0:02:11.1]} 15. axb4 {[%clk 0:01:33.5]}
15... Nxb4 {[%clk 0:01:52.3]} 16. Bxb4 {[%clk 0:01:27.1]} 16... Bxb4 {[%clk
0:01:51.7]} 17. Bxg6 {[%clk 0:01:12.5]} 17... hxg6 {[%clk 0:01:50.4]} 18. Rc1
{[%clk 0:01:09.5]} 18... Qxc1 {[%clk 0:01:35.3]} 19. Qxc1 {[%clk 0:01:09.4]}
19... Rxc1 {[%clk 0:01:35.9]} 20. Rxc1 {[%clk 0:01:10.1]} 20... Ke7 {[%clk
0:01:35.9]} 21. Rc7 {[%clk 0:00:56.7]} 21... Rc8 {[%clk 0:01:34]} 22. Rxd7+
{[%clk 0:00:56.2]} 22... Kxd7 {[%clk 0:01:33]} 23. Nb6+ {[%clk 0:00:57.1]} 23...
Kd8 {[%clk 0:01:33.2]} 24. Nxc8 {[%clk 0:00:58]} 24... Kxc8 {[%clk 0:01:33.6]}
25. Kf1 {[%clk 0:00:54.3]} 25... f6 {[%clk 0:01:24.5]} 26. Ke2 {[%clk
0:00:54.2]} 26... g5 {[%clk 0:01:23.8]} 27. Kd3 {[%clk 0:00:49.2]} 27... Kd7
{[%clk 0:01:22.2]} 28. exf6 {[%clk 0:00:47.4]} 28... gxf6 {[%clk 0:01:22.1]} 29.
g4 {[%clk 0:00:43.8]} 29... Bd6 {[%clk 0:01:20.1]} 30. h4 {[%clk 0:00:44.2]}
30... gxh4 {[%clk 0:01:19.2]} 31. Nxh4 {[%clk 0:00:44.9]} 31... Bf4 {[%clk
0:01:19.6]} 32. Ng2 {[%clk 0:00:40.7]} 32... Bc1 {[%clk 0:01:19.5]} 33. Kc2
{[%clk 0:00:37.5]} 33... Ba3 {[%clk 0:01:14.3]} 34. f4 {[%clk 0:00:33.8]} 34...
Be7 {[%clk 0:01:13]} 35. Ne1 {[%clk 0:00:30.2]} 35... Bd6 {[%clk 0:01:00.8]} 36.
Nd3 {[%clk 0:00:26.6]} 36... b6 {[%clk 0:01:00.3]} 37. g5 {[%clk 0:00:26.4]}
37... fxg5 {[%clk 0:00:54.5]} 38. fxg5 {[%clk 0:00:27.3]} 38... Ke7 {[%clk
0:00:55]} 39. Kb3 {[%clk 0:00:22.6]} 39... b5 {[%clk 0:00:50.4]} 40. Nc1 {[%clk
0:00:17]} 40... Kf7 {[%clk 0:00:49.3]} 41. Na2 {[%clk 0:00:17.6]} 41... Kg6
{[%clk 0:00:48.2]} 42. Nc3 {[%clk 0:00:18.1]} 42... b4 {[%clk 0:00:47.8]} 43.
Nb5 {[%clk 0:00:17.7]} 43... Be7 {[%clk 0:00:26.9]} 44. Nc7 {[%clk 0:00:15.1]}
44... Kxg5 {[%clk 0:00:21.4]} 45. Nxe6+ {[%clk 0:00:14.9]} 45... Kf5 {[%clk
0:00:21.6]} 46. Nc7 {[%clk 0:00:12.8]} 46... Ke4 {[%clk 0:00:20.1]} 47. Nb5
{[%clk 0:00:12.2]} 47... Bf8 {[%clk 0:00:20.1]} 48. Kc2 {[%clk 0:00:11.8]} 48...
Bg7 {[%clk 0:00:18.1]} 49. Kb3 {[%clk 0:00:10.7]} 49... Bf8 {[%clk 0:00:16.9]}
50. Kc2 {[%clk 0:00:10.9]} 50... Be7 {[%clk 0:00:16.3]} 51. Kd2 {[%clk
0:00:05.6]} 51... Bf6 {[%clk 0:00:15.3]} 52. Kc2 {[%clk 0:00:04.5]} 52... Bxd4
{[%clk 0:00:15.2]} 53. Kb3 {[%clk 0:00:04.2]} 53... Bc5 {[%clk 0:00:15.4]} 54.
Kc2 {[%clk 0:00:02.4]} 54... d4 {[%clk 0:00:14.3]} 55. Nc7 {[%clk 0:00:03.3]}
55... Bd6 {[%clk 0:00:13.2]} 56. Ne6 {[%clk 0:00:03]} 56... Kd5 {[%clk
0:00:13.3]} 57. Ng5 {[%clk 0:00:02.8]} 57... Kc4 {[%clk 0:00:13.2]} 58. Ne4
{[%clk 0:00:03.1]} 58... Bf4 {[%clk 0:00:13.2]} 59. Nf2 {[%clk 0:00:02.6]} 59...
b3+ {[%clk 0:00:13.2]} 60. Kb1 {[%clk 0:00:02.8]} 60... Bd2 {[%clk 0:00:11.9]}
61. Nd1 {[%clk 0:00:01.8]} 61... Bc3 {[%clk 0:00:12.3]} 62. Nf2 {[%clk 0:00:02]}
62... d3 {[%clk 0:00:11.7]} 63. Ng4 {[%clk 0:00:02.1]} 63... d2 {[%clk
0:00:10.7]} 64. Ne3+ {[%clk 0:00:02.5]} 64... Kd3 {[%clk 0:00:11.4]} 65. Nd1
{[%clk 0:00:03.4]} 65... Bd4 {[%clk 0:00:11.2]} 66. Nb2+ {[%clk 0:00:01.6]}
66... Bxb2 {[%clk 0:00:09.3]} 67. Kxb2 {[%clk 0:00:02.5]} 67... Ke2 {[%clk
0:00:09.9]} 68. Kxb3 {[%clk 0:00:02.2]} 68... d1=Q+ {[%clk 0:00:10.2]} 69. Ka2
{[%clk 0:00:03.1]} 69... Qd5+ {[%clk 0:00:09.2]} 70. Kb2 {[%clk 0:00:04]} 70...
Qc4 {[%clk 0:00:09.4]} 71. Kb1 {[%clk 0:00:04.2]} 71... Kd3 {[%clk 0:00:08.4]}
72. Kb2 {[%clk 0:00:05.1]} 72... Qc2+ {[%clk 0:00:08.5]} 73. Ka3 {[%clk
0:00:05.3]} 73... Qb1 {[%clk 0:00:08.1]} 74. Ka4 {[%clk 0:00:05.5]} 74... Kc4
{[%clk 0:00:08.5]} 75. Ka5 {[%clk 0:00:06.1]} 75... Qb5# {[%clk 0:00:08.7]} 0-1

[Event "Early-Titled-Tuesday-Blitz-September-26-2023"]
[Site "Chess.com"]
[Date "2023.09.26"]
[Round "5"]
[White "KononenkoD"]
[Black "amylazy"]
[Result "0-1"]
[WhiteElo "2592"]
[BlackElo "2450"]
[TimeControl "180+1"]
[EndTime "8:59:43 PDT"]
[Termination "amylazy won by checkmate"]

1. e4 {[%clk 0:02:58.6]} 1... c5 {[%clk 0:02:59.1]} 2. Nf3 {[%clk 0:02:58]} 2...
e6 {[%clk 0:02:58.8]} 3. d4 {[%clk 0:02:58.2]} 3... cxd4 {[%clk 0:02:58.9]} 4.
Nxd4 {[%clk 0:02:59.1]} 4... a6 {[%clk 0:02:58.2]} 5. Bc4 {[%clk 0:02:58.6]}
5... b5 {[%clk 0:02:55]} 6. Bb3 {[%clk 0:02:56.9]} 6... Bb7 {[%clk 0:02:54.2]}
7. Nc3 {[%clk 0:02:51]} 7... d6 {[%clk 0:02:49.4]} 8. O-O {[%clk 0:02:50.5]}
8... Nf6 {[%clk 0:02:47.9]} 9. f4 {[%clk 0:02:48.9]} 9... Be7 {[%clk 0:02:44.1]}
10. f5 {[%clk 0:02:45.7]} 10... e5 {[%clk 0:02:42.7]} 11. Nde2 {[%clk
0:02:45.1]} 11... Nxe4 {[%clk 0:02:25.8]} 12. Nxe4 {[%clk 0:02:42.8]} 12... Bxe4
{[%clk 0:02:26.3]} 13. Ng3 {[%clk 0:02:32.3]} 13... Bb7 {[%clk 0:02:25.3]} 14.
f6 {[%clk 0:02:18.6]} 14... Bxf6 {[%clk 0:02:15.8]} 15. Nh5 {[%clk 0:02:16.4]}
15... Qb6+ {[%clk 0:01:45.7]} 16. Kh1 {[%clk 0:02:13]} 16... Nd7 {[%clk
0:01:45.4]} 17. Bh6 {[%clk 0:01:57.5]} 17... O-O-O {[%clk 0:01:41.7]} 18. Nxf6
{[%clk 0:01:37.1]} 18... gxf6 {[%clk 0:01:38.7]} 19. Bxf7 {[%clk 0:01:31.3]}
19... Rhg8 {[%clk 0:01:12.9]} 20. Bd5 {[%clk 0:01:05.2]} 20... Rg6 {[%clk
0:01:04.8]} 21. Bc1 {[%clk 0:00:50.2]} 21... Rdg8 {[%clk 0:01:04.1]} 22. Qf3
{[%clk 0:00:32.9]} 22... Bxd5 {[%clk 0:00:44.8]} 23. Qxd5 {[%clk 0:00:31.1]}
23... Qb7 {[%clk 0:00:39.9]} 24. Qxb7+ {[%clk 0:00:30.5]} 24... Kxb7 {[%clk
0:00:40.8]} 25. g3 {[%clk 0:00:30.9]} 25... Rc8 {[%clk 0:00:39.1]} 26. c3 {[%clk
0:00:30.6]} 26... d5 {[%clk 0:00:35.6]} 27. Bd2 {[%clk 0:00:27.1]} 27... e4
{[%clk 0:00:35.4]} 28. a4 {[%clk 0:00:26.9]} 28... Ne5 {[%clk 0:00:33.8]} 29.
axb5 {[%clk 0:00:26.1]} 29... axb5 {[%clk 0:00:34.7]} 30. Be3 {[%clk 0:00:25.6]}
30... Ra8 {[%clk 0:00:32.9]} 31. Rxa8 {[%clk 0:00:25.1]} 31... Kxa8 {[%clk
0:00:33.8]} 32. Ra1+ {[%clk 0:00:25.3]} 32... Kb8 {[%clk 0:00:33]} 33. Ra5
{[%clk 0:00:24.5]} 33... Nc4 {[%clk 0:00:30.5]} 34. Rxb5+ {[%clk 0:00:24.1]}
34... Kc8 {[%clk 0:00:29.9]} 35. Bd4 {[%clk 0:00:19.2]} 35... e3 {[%clk
0:00:26.9]} 36. Kg2 {[%clk 0:00:19.1]} 36... Rg5 {[%clk 0:00:19.6]} 37. b3
{[%clk 0:00:18]} 37... Nd6 {[%clk 0:00:16.6]} 38. Rc5+ {[%clk 0:00:17.7]} 38...
Kd7 {[%clk 0:00:17]} 39. Bxe3 {[%clk 0:00:18]} 39... Rf5 {[%clk 0:00:16.9]} 40.
Bf4 {[%clk 0:00:17.9]} 40... Ne4 {[%clk 0:00:17.2]} 41. Ra5 {[%clk 0:00:16]}
41... Kc6 {[%clk 0:00:09.9]} 42. c4 {[%clk 0:00:14.9]} 42... Nc5 {[%clk
0:00:10.1]} 43. b4 {[%clk 0:00:13.6]} 43... Nb3 {[%clk 0:00:08.9]} 44. b5+
{[%clk 0:00:13.3]} 44... Kc5 {[%clk 0:00:07.1]} 45. Ra7 {[%clk 0:00:10.2]} 45...
dxc4 {[%clk 0:00:06.9]} 46. Rxh7 {[%clk 0:00:08.6]} 46... Kxb5 {[%clk 0:00:07]}
47. Rc7 {[%clk 0:00:07.1]} 47... Nc5 {[%clk 0:00:05.4]} 48. h4 {[%clk
0:00:06.9]} 48... c3 {[%clk 0:00:05.5]} 49. Kf3 {[%clk 0:00:07.4]} 49... c2
{[%clk 0:00:04.6]} 50. Rc8 {[%clk 0:00:04.1]} 50... Rd5 {[%clk 0:00:04.5]} 51.
Rb8+ {[%clk 0:00:01.1]} 51... Kc4 {[%clk 0:00:03.8]} 52. Rb2 {[%clk 0:00:01.2]}
52... Kc3 {[%clk 0:00:03.4]} 53. Ra2 {[%clk 0:00:01.4]} 53... Nb3 {[%clk
0:00:03.3]} 54. Ra3 {[%clk 0:00:02.3]} 54... Rd4 {[%clk 0:00:03.4]} 55. Rxb3+
{[%clk 0:00:02.8]} 55... Kxb3 {[%clk 0:00:02.6]} 56. Be3 {[%clk 0:00:03.7]}
56... Rd3 {[%clk 0:00:02.7]} 57. h5 {[%clk 0:00:04.6]} 57... Rxe3+ {[%clk
0:00:03.6]} 58. Kxe3 {[%clk 0:00:05.3]} 58... c1=Q+ {[%clk 0:00:04.5]} 59. Ke4
{[%clk 0:00:06.2]} 59... Qc5 {[%clk 0:00:05.1]} 60. Kf4 {[%clk 0:00:06.4]} 60...
Qg5+ {[%clk 0:00:06]} 61. Kf3 {[%clk 0:00:06.6]} 61... Qxh5+ {[%clk 0:00:06.9]}
62. Kg2 {[%clk 0:00:07.5]} 62... Qg5 {[%clk 0:00:07.8]} 63. Kf2 {[%clk
0:00:07.7]} 63... f5 {[%clk 0:00:08.7]} 64. Kg2 {[%clk 0:00:08.6]} 64... Qg4
{[%clk 0:00:09.6]} 65. Kf2 {[%clk 0:00:09.5]} 65... Kc3 {[%clk 0:00:10]} 66. Kg2
{[%clk 0:00:10.4]} 66... f4 {[%clk 0:00:10.1]} 67. Kf1 {[%clk 0:00:11.3]} 67...
fxg3 {[%clk 0:00:11]} 68. Kg2 {[%clk 0:00:10.3]} 68... Kd3 {[%clk 0:00:10.3]}
69. Kf1 {[%clk 0:00:10.5]} 69... Qe2+ {[%clk 0:00:09.3]} 70. Kg1 {[%clk
0:00:11.4]} 70... Qf2+ {[%clk 0:00:09.8]} 71. Kh1 {[%clk 0:00:10]} 71... Qh2#
{[%clk 0:00:10.7]} 0-1

[Event "Early-Titled-Tuesday-Blitz-September-26-2023"]
[Site "Chess.com"]
[Date "2023.09.26"]
[Round "5"]
[White "wild3000"]
[Black "Juicy_Fork"]
[Result "0-1"]
[WhiteElo "2311"]
[BlackElo "2486"]
[TimeControl "180+1"]
[EndTime "8:59:49 PDT"]
[Termination "Juicy_Fork won on time"]

1. d4 {[%clk 0:03:00.7]} 1... Nf6 {[%clk 0:03:00]} 2. Nf3 {[%clk 0:03:00.6]}
2... g6 {[%clk 0:03:00.4]} 3. e3 {[%clk 0:03:00.6]} 3... Bg7 {[%clk 0:03:00.8]}
4. Be2 {[%clk 0:03:00.8]} 4... O-O {[%clk 0:03:01]} 5. O-O {[%clk 0:03:01.7]}
5... d6 {[%clk 0:03:01.5]} 6. b3 {[%clk 0:03:01.8]} 6... c5 {[%clk 0:02:59.8]}
7. Bb2 {[%clk 0:03:01.8]} 7... cxd4 {[%clk 0:02:55.2]} 8. Nxd4 {[%clk
0:03:01.4]} 8... d5 {[%clk 0:02:54.3]} 9. Nd2 {[%clk 0:02:58.9]} 9... Re8 {[%clk
0:02:50.3]} 10. c4 {[%clk 0:02:57.4]} 10... e5 {[%clk 0:02:50.1]} 11. N4f3
{[%clk 0:02:55.9]} 11... Nc6 {[%clk 0:02:48.2]} 12. cxd5 {[%clk 0:02:54.2]}
12... Nxd5 {[%clk 0:02:48.3]} 13. Nc4 {[%clk 0:02:45.6]} 13... b5 {[%clk
0:02:38.2]} 14. e4 {[%clk 0:02:33.6]} 14... Nf4 {[%clk 0:02:28.1]} 15. Ne3
{[%clk 0:02:29.4]} 15... Qxd1 {[%clk 0:02:15.8]} 16. Bxd1 {[%clk 0:02:25.8]}
16... Nd3 {[%clk 0:02:14.3]} 17. Rb1 {[%clk 0:02:16.7]} 17... Ba6 {[%clk
0:01:59.8]} 18. Nd5 {[%clk 0:02:07.5]} 18... Rac8 {[%clk 0:01:53]} 19. Be2
{[%clk 0:02:01.1]} 19... Nc5 {[%clk 0:01:23.7]} 20. a4 {[%clk 0:01:22.8]} 20...
bxa4 {[%clk 0:01:01.5]} 21. Bxa6 {[%clk 0:01:21.2]} 21... Nxa6 {[%clk
0:01:02.4]} 22. bxa4 {[%clk 0:01:18.3]} 22... Nd4 {[%clk 0:01:01.7]} 23. Nxd4
{[%clk 0:01:13.2]} 23... exd4 {[%clk 0:01:01.8]} 24. f3 {[%clk 0:01:13.8]} 24...
Nc5 {[%clk 0:00:59.5]} 25. Rfd1 {[%clk 0:01:10.1]} 25... Ne6 {[%clk 0:00:31.7]}
26. Ba1 {[%clk 0:01:04.2]} 26... Rc4 {[%clk 0:00:31.2]} 27. a5 {[%clk
0:01:00.8]} 27... Ra4 {[%clk 0:00:31.4]} 28. Rb5 {[%clk 0:01:00.7]} 28... a6
{[%clk 0:00:30.2]} 29. Rb7 {[%clk 0:00:53.2]} 29... Rxa5 {[%clk 0:00:26.2]} 30.
Ra7 {[%clk 0:00:47.8]} 30... h5 {[%clk 0:00:22.6]} 31. h4 {[%clk 0:00:46.1]}
31... Rxa1 {[%clk 0:00:20.3]} 32. Rxa1 {[%clk 0:00:45.8]} 32... d3 {[%clk
0:00:20.9]} 33. R7xa6 {[%clk 0:00:42.2]} 33... Bxa1 {[%clk 0:00:12.7]} 34. Rxa1
{[%clk 0:00:43.1]} 34... Rb8 {[%clk 0:00:11.7]} 35. Rd1 {[%clk 0:00:41.4]} 35...
Nc5 {[%clk 0:00:10]} 36. Rd2 {[%clk 0:00:33.6]} 36... Rb1+ {[%clk 0:00:05.9]}
37. Kf2 {[%clk 0:00:33.5]} 37... Rc1 {[%clk 0:00:04.6]} 38. Ke3 {[%clk
0:00:32.1]} 38... Re1+ {[%clk 0:00:04.8]} 39. Kf2 {[%clk 0:00:29.6]} 39... Rc1
{[%clk 0:00:04.3]} 40. Nf4 {[%clk 0:00:26.5]} 40... Rc3 {[%clk 0:00:01.9]} 41.
Ke3 {[%clk 0:00:25.3]} 41... Kg7 {[%clk 0:00:01.9]} 42. Nxd3 {[%clk 0:00:21.6]}
42... Ne6 {[%clk 0:00:02.3]} 43. Ke2 {[%clk 0:00:20.3]} 43... Ra3 {[%clk
0:00:02.3]} 44. g3 {[%clk 0:00:19.8]} 44... Nd4+ {[%clk 0:00:02.7]} 45. Ke3
{[%clk 0:00:19]} 45... Nb3 {[%clk 0:00:02.4]} 46. Rd1 {[%clk 0:00:17.4]} 46...
Na5 {[%clk 0:00:02.4]} 47. Ke2 {[%clk 0:00:16.8]} 47... Nc4 {[%clk 0:00:02.7]}
48. Nf4 {[%clk 0:00:15.1]} 48... Ra2+ {[%clk 0:00:02.9]} 49. Ke1 {[%clk
0:00:10.7]} 49... Ne3 {[%clk 0:00:02.2]} 50. Rd3 {[%clk 0:00:09.4]} 50... Ng2+
{[%clk 0:00:01.6]} 51. Nxg2 {[%clk 0:00:09.2]} 51... Rxg2 {[%clk 0:00:02.5]} 52.
f4 {[%clk 0:00:09.4]} 52... Kf6 {[%clk 0:00:02.3]} 53. Kf1 {[%clk 0:00:07.7]}
53... Ra2 {[%clk 0:00:02.1]} 54. Rd6+ {[%clk 0:00:07.7]} 54... Ke7 {[%clk
0:00:02]} 55. Rd3 {[%clk 0:00:07.1]} 55... Ke6 {[%clk 0:00:02]} 56. Rf3 {[%clk
0:00:06.2]} 56... Ra4 {[%clk 0:00:01.5]} 57. Re3 {[%clk 0:00:05.7]} 57... Rb4
{[%clk 0:00:02.1]} 58. Kf2 {[%clk 0:00:05.8]} 58... Rb2+ {[%clk 0:00:02.5]} 59.
Kf3 {[%clk 0:00:06.2]} 59... Rb4 {[%clk 0:00:02.5]} 60. Rd3 {[%clk 0:00:06.3]}
60... Ra4 {[%clk 0:00:02.7]} 61. Rb3 {[%clk 0:00:06.6]} 61... Rc4 {[%clk
0:00:02.2]} 62. Rb6+ {[%clk 0:00:06.6]} 62... Ke7 {[%clk 0:00:02.1]} 63. Rb3
{[%clk 0:00:04.8]} 63... Ke6 {[%clk 0:00:02.2]} 64. Ra3 {[%clk 0:00:04.5]} 64...
Rb4 {[%clk 0:00:02.4]} 65. e5 {[%clk 0:00:04.8]} 65... Kf5 {[%clk 0:00:02.2]}
66. Rc3 {[%clk 0:00:02.1]} 66... Ra4 {[%clk 0:00:02.4]} 0-1

[Event "Early-Titled-Tuesday-Blitz-September-26-2023"]
[Site "Chess.com"]
[Date "2023.09.26"]
[Round "5"]
[White "esrosenberg"]
[Black "halfnatty"]
[Result "0-1"]
[WhiteElo "2350"]
[BlackElo "2586"]
[TimeControl "180+1"]
[EndTime "9:00:02 PDT"]
[Termination "halfnatty won by resignation"]

1. Nf3 {[%clk 0:03:00.9]} 1... d5 {[%clk 0:02:59.2]} 2. d4 {[%clk 0:03:00.7]}
2... Nf6 {[%clk 0:02:59]} 3. c3 {[%clk 0:03:01]} 3... e6 {[%clk 0:02:55.1]} 4.
Bg5 {[%clk 0:03:00.3]} 4... c5 {[%clk 0:02:53]} 5. Nbd2 {[%clk 0:02:54.5]} 5...
Nc6 {[%clk 0:02:51.8]} 6. e3 {[%clk 0:02:42.1]} 6... Be7 {[%clk 0:02:51.3]} 7.
Bd3 {[%clk 0:02:41.9]} 7... Qb6 {[%clk 0:02:44.4]} 8. Qc2 {[%clk 0:02:28.4]}
8... Bd7 {[%clk 0:02:29.1]} 9. O-O {[%clk 0:02:23.5]} 9... Rc8 {[%clk
0:02:28.4]} 10. Qb1 {[%clk 0:02:11.1]} 10... h6 {[%clk 0:02:23.6]} 11. Bh4
{[%clk 0:02:10.3]} 11... g5 {[%clk 0:02:19.7]} 12. Bg3 {[%clk 0:02:09.8]} 12...
Nh5 {[%clk 0:02:19.6]} 13. Be5 {[%clk 0:02:08]} 13... Rg8 {[%clk 0:01:59.4]} 14.
Bh7 {[%clk 0:01:58.1]} 14... Rf8 {[%clk 0:01:59.4]} 15. Nb3 {[%clk 0:01:37.7]}
15... c4 {[%clk 0:01:55.9]} 16. Nbd2 {[%clk 0:01:31.6]} 16... g4 {[%clk
0:01:54.1]} 17. Ne1 {[%clk 0:01:24]} 17... Nxe5 {[%clk 0:01:51.7]} 18. dxe5
{[%clk 0:01:24.9]} 18... Bg5 {[%clk 0:01:49]} 19. Nc2 {[%clk 0:01:13.1]} 19...
Ke7 {[%clk 0:01:26.7]} 20. Nd4 {[%clk 0:01:12.8]} 20... f5 {[%clk 0:01:26.5]}
21. exf6+ {[%clk 0:01:11.3]} 21... Nxf6 {[%clk 0:01:26.4]} 22. Bc2 {[%clk
0:01:06.6]} 22... h5 {[%clk 0:01:26.4]} 23. f4 {[%clk 0:01:03.7]} 23... gxf3
{[%clk 0:01:24.2]} 24. N2xf3 {[%clk 0:01:00.4]} 24... Bxe3+ {[%clk 0:01:21.9]}
25. Kh1 {[%clk 0:01:00.8]} 25... Qd6 {[%clk 0:01:08.2]} 26. Re1 {[%clk
0:00:57.3]} 26... Bxd4 {[%clk 0:01:05.6]} 27. Nxd4 {[%clk 0:00:57.4]} 27... Kd8
{[%clk 0:01:05.9]} 28. Qc1 {[%clk 0:00:51.6]} 28... e5 {[%clk 0:00:59.5]} 29.
Nf5 {[%clk 0:00:51]} 29... Bxf5 {[%clk 0:00:59.8]} 30. Bxf5 {[%clk 0:00:50.8]}
30... Rc7 {[%clk 0:01:00.4]} 31. Qh6 {[%clk 0:00:50.7]} 31... Rcf7 {[%clk
0:00:46.4]} 32. Rad1 {[%clk 0:00:49.6]} 32... Kc7 {[%clk 0:00:45]} 33. Qe3
{[%clk 0:00:38.4]} 33... b6 {[%clk 0:00:34]} 34. h3 {[%clk 0:00:38.4]} 34... Re7
{[%clk 0:00:26]} 35. b3 {[%clk 0:00:37.3]} 35... cxb3 {[%clk 0:00:23.2]} 36.
axb3 {[%clk 0:00:37.2]} 36... Qc5 {[%clk 0:00:23.6]} 37. Qh6 {[%clk 0:00:33.3]}
37... Ree8 {[%clk 0:00:20.6]} 38. b4 {[%clk 0:00:30.9]} 38... Qe7 {[%clk
0:00:19.9]} 39. b5 {[%clk 0:00:27.7]} 39... Kb8 {[%clk 0:00:19.8]} 40. c4 {[%clk
0:00:25.5]} 40... d4 {[%clk 0:00:19.8]} 41. Be4 {[%clk 0:00:20.8]} 41... Nxe4
{[%clk 0:00:19.5]} 42. Rxe4 {[%clk 0:00:20.7]} 42... Rf5 {[%clk 0:00:15.5]} 43.
Rdxd4 {[%clk 0:00:19.4]} 43... Ref8 {[%clk 0:00:15.7]} 44. Rd1 {[%clk
0:00:17.9]} 44... Qf7 {[%clk 0:00:15.5]} 45. Qd6+ {[%clk 0:00:16.9]} 45... Qc7
{[%clk 0:00:15]} 46. Qxc7+ {[%clk 0:00:16.3]} 46... Kxc7 {[%clk 0:00:15.3]} 47.
Rde1 {[%clk 0:00:16.3]} 47... Rf1+ {[%clk 0:00:12.6]} 48. Rxf1 {[%clk
0:00:16.3]} 48... Rxf1+ {[%clk 0:00:13.4]} 49. Kh2 {[%clk 0:00:17.2]} 49... Rf5
{[%clk 0:00:13.6]} 50. g4 {[%clk 0:00:17.6]} 50... hxg4 {[%clk 0:00:13.7]} 51.
hxg4 {[%clk 0:00:18.5]} 51... Rg5 {[%clk 0:00:13.8]} 52. Kg3 {[%clk 0:00:19.1]}
52... Kd6 {[%clk 0:00:12]} 53. Kh4 {[%clk 0:00:19.6]} 53... Rg8 {[%clk
0:00:12.3]} 54. Kh5 {[%clk 0:00:20]} 54... Ke6 {[%clk 0:00:11.9]} 55. Re1 {[%clk
0:00:18]} 55... Rh8+ {[%clk 0:00:11.8]} 56. Kg5 {[%clk 0:00:18.3]} 56... Rc8
{[%clk 0:00:12.1]} 57. Re4 {[%clk 0:00:17.5]} 57... Rg8+ {[%clk 0:00:12]} 58.
Kh4 {[%clk 0:00:17.7]} 58... Kf6 {[%clk 0:00:11.8]} 59. Re1 {[%clk 0:00:15.7]}
59... Rc8 {[%clk 0:00:11.8]} 60. Rf1+ {[%clk 0:00:15.6]} 60... Ke6 {[%clk
0:00:10.4]} 61. Rc1 {[%clk 0:00:16.2]} 61... Rh8+ {[%clk 0:00:09.4]} 62. Kg5
{[%clk 0:00:16]} 62... Rg8+ {[%clk 0:00:09.9]} 63. Kh4 {[%clk 0:00:16.3]} 63...
e4 {[%clk 0:00:10.4]} 64. g5 {[%clk 0:00:14.5]} 64... Kf5 {[%clk 0:00:10.7]} 65.
Rf1+ {[%clk 0:00:14]} 65... Ke5 {[%clk 0:00:11.1]} 66. Kg4 {[%clk 0:00:14]}
66... e3 {[%clk 0:00:10.2]} 67. Rf5+ {[%clk 0:00:13.6]} 67... Ke4 {[%clk
0:00:10.2]} 68. Rf4+ {[%clk 0:00:13.9]} 68... Kd3 {[%clk 0:00:10.4]} 69. Rf7
{[%clk 0:00:13.2]} 69... e2 {[%clk 0:00:10.7]} 70. Re7 {[%clk 0:00:12.8]} 70...
Rg7 {[%clk 0:00:08.3]} 71. Re6 {[%clk 0:00:10.7]} 71... Rc7 {[%clk 0:00:08.4]}
72. g6 {[%clk 0:00:10.6]} 72... Rxc4+ {[%clk 0:00:08.7]} 73. Kf5 {[%clk
0:00:10.6]} 73... Rc5+ {[%clk 0:00:08.7]} 74. Kf6 {[%clk 0:00:10.5]} 74... Rc1
{[%clk 0:00:08.5]} 75. g7 {[%clk 0:00:10]} 75... Rf1+ {[%clk 0:00:09]} 76. Ke7
{[%clk 0:00:08.9]} 76... e1=Q {[%clk 0:00:09]} 77. Rxe1 {[%clk 0:00:07.7]} 77...
Rxe1+ {[%clk 0:00:09.3]} 78. Kf7 {[%clk 0:00:08.6]} 78... Rg1 {[%clk 0:00:10]}
79. g8=Q {[%clk 0:00:08.7]} 79... Rxg8 {[%clk 0:00:10]} 80. Kxg8 {[%clk
0:00:09.6]} 80... Kc4 {[%clk 0:00:10.6]} 81. Kf7 {[%clk 0:00:10.5]} 81... Kxb5
{[%clk 0:00:11.5]} 82. Ke6 {[%clk 0:00:11.4]} 82... a5 {[%clk 0:00:12.2]} 0-1